bitfinex/quotes_ETHUSD_20240916
["timestamp","ask_amount","ask_price","bid_price","bid_amount"]
[1726482719799,13.02309,2303.6,2303.5,0.0976079]
[1726482720004,28.93663347,2303.6,2303.5,0.03903916]
[1726482720326,25.76307847,2303.6,2303.5,0.03903916]
[1726482722592,30.10410847,2303.6,2303.5,0.03903916]
[1726482722795,30.10410847,2303.6,2302.8,0.0382892]
[1726482722796,11.6847,2302.9,2302.8,0.0382892]
[1726482722988,17.19552,2302.9,2302.8,0.0382892]
[1726482723193,12.85317,2302.9,2302.8,0.0382892]
[1726482724322,11.6847,2302.9,2302.8,0.0382892]
[1726482726944,16.02705,2302.9,2302.8,0.0382892]
[1726482727144,11.6847,2302.9,2302.8,0.0382892]
[1726482727287,16.02705,2302.9,2302.8,0.0382892]
[1726482728747,11.6847,2302.9,2302.8,0.0382892]
[1726482728896,17.629752,2302.9,2302.8,0.0382892]
[1726482729394,4.34367,2302.2,2302.1,2.3506892]
[1726482730835,4.34264,2302.8,2302.1,2.3506892]
[1726482731090,4.34264,2302.8,2302.5,4.23148347]
[1726482731091,4.34254,2302.8,2302.5,4.23148347]
[1726482733193,4.34236,2302.9,2302.4,6.62638]
[1726482733334,4.34236,2302.9,2302.4,8.17000324]
[1726482733770,4.34254,2302.8,2302.4,8.17000324]
[1726482733997,4.34254,2302.8,2302.4,3.82672324]
[1726482734216,8.68524,2302.8,2302.4,2.2831]
[1726482734428,4.34254,2302.8,2302.4,2.2831]
[1726482734573,8.68526,2302.8,2302.4,2.2831]
[1726482734922,4.34254,2302.8,2302.4,2.2831]
[1726482735419,8.68519,2302.8,2302.4,2.2831]
[1726482735915,4.34254,2302.8,2302.4,2.2831]
[1726482736414,4.34283,2302.7,2302.4,2.2831]
[1726482736718,4.34254,2302.8,2302.4,2.2831]
[1726482736926,7.34236,2302.9,2302.5,4.23148347]
[1726482737270,4.34254,2302.8,2302.5,4.23148347]
[1726482737474,7.47,2303.2,2302.7,4.23148347]
[1726482737672,4.34188,2303.2,2302.7,4.23148347]
[1726482737937,4.34188,2303.2,2302.7,8.57408347]
[1726482738144,4.34188,2303.2,2302.8,2.3597]
[1726482738278,4.34224,2303.0,2302.8,2.3597]
[1726482738477,8.637475,2303.6,2302.4,2.3597]
[1726482738478,4.3427,2302.8,2302.4,2.3597]
[1726482739178,4.3427,2302.8,2302.5,4.23148347]
[1726482740534,4.34235,2302.9,2302.5,4.23148347]
[1726482740709,4.34225,2303.0,2302.6,2.3184]
[1726482741032,4.34225,2303.0,2302.6,3.41184635]
[1726482741242,3.0,2303.3,2302.6,3.41184635]
[1726482741243,4.34198,2303.1,2302.6,7.75467635]
[1726482741820,4.34218,2303.0,2302.6,7.75467635]
[1726482742027,4.34218,2303.0,2302.6,3.41184635]
[1726482745142,4.34218,2303.0,2302.6,7.75470635]
[1726482745297,8.68407,2303.1,2302.6,7.75470635]
[1726482745715,4.34218,2303.0,2302.6,7.75470635]
[1726482745945,4.34218,2303.0,2302.6,3.41184635]
[1726482746314,4.34198,2303.1,2302.6,3.41184635]
[1726482746634,3.38637475,2303.3,2302.6,2.3184]
[1726482746635,4.34243,2302.9,2302.6,2.3184]
[1726482747740,4.34254,2302.8,2302.6,2.3184]
[1726482748398,4.34237,2302.9,2302.6,2.3184]
[1726482748850,3.38637475,2303.3,2302.7,6.63348347]
[1726482749049,4.34205,2303.1,2302.7,10.97619347]
[1726482749555,4.34205,2303.1,2302.7,6.74471]
[1726482751154,8.68373,2303.2,2302.7,6.74457]
[1726482751355,8.68373,2303.2,2302.7,7.28789696]
[1726482751717,4.342,2303.1,2302.7,7.28789696]
[1726482751931,4.342,2303.1,2302.7,6.74457]
[1726482752113,4.342,2303.1,2302.7,2.402]
[1726482752305,8.68412,2303.1,2302.7,2.402]
[1726482752743,4.342,2303.1,2302.7,2.402]
[1726482754335,4.342,2303.1,2302.7,6.74472]
[1726482754538,4.34228,2303.0,2302.7,2.402]
[1726482754752,4.34244,2302.9,2302.5,4.23148347]
[1726482755060,8.68488,2302.9,2302.5,10.90267347]
[1726482755230,8.68488,2302.9,2302.5,6.55958347]
[1726482755554,4.34255,2302.8,2302.5,6.55958347]
[1726482756743,0.868472,2302.8,2302.3,2.3705]
[1726482756944,0.868472,2302.8,2302.1,0.0382892]
[1726482756945,11.68734,2302.2,2302.1,0.0382892]
[1726482771039,24.60616347,2302.2,2302.1,0.0382892]
[1726482771272,20.26249347,2302.2,2302.1,0.0382892]
[1726482771872,24.60616347,2302.2,2302.1,0.0382892]
[1726482772070,24.60616347,2302.2,2301.5,0.43138098]
[1726482772071,8.6896,2301.6,2301.5,0.43138098]
[1726482781071,11.6896,2301.6,2301.5,0.43138098]
[1726482781277,24.61068347,2301.6,2301.5,0.43138098]
[1726482781686,16.0344,2301.6,2301.5,0.43138098]
[1726482781892,16.8981475,2301.6,2301.5,0.43138098]
[1726482782386,21.2429475,2301.6,2301.5,0.43138098]
[1726482782720,21.12963097,2301.6,2301.5,0.43138098]
[1726482783421,25.47443097,2301.6,2301.5,0.43138098]
[1726482783630,16.8981475,2301.6,2301.5,0.43138098]
[1726482784527,12.5533475,2301.6,2301.5,0.43138098]
[1726482784874,8.6896,2301.6,2301.5,2.79318098]
[1726482786335,11.6896,2301.6,2301.5,0.43138098]
[1726482788419,20.3792,2301.6,2301.5,0.43138098]
[1726482788622,22.41712,2301.6,2301.5,0.43138098]
[1726482788781,26.99712,2301.6,2301.5,0.43138098]
[1726482788981,20.37996,2301.5,2301.4,0.0382892]
[1726482789184,24.61144347,2301.5,2301.4,0.0382892]
[1726482789543,30.54066148,2301.5,2301.4,0.0382892]
[1726482790932,30.54066148,2301.5,2300.7,0.0382892]
[1726482790933,8.69262,2300.8,2300.7,0.0382892]
[1726482791227,3.0,2300.8,2300.7,2.5044892]
[1726482791801,4.34569,2301.2,2300.7,2.75493812]
[1726482792003,4.34588,2301.1,2300.8,2.4526]
[1726482792208,8.69173,2301.1,2300.8,3.58455116]
[1726482792409,4.34549,2301.3,2300.9,2.4526]
[1726482792737,4.34556,2301.2,2301.0,2.3463]
[1726482793083,4.34574,2301.1,2301.0,2.3463]
[1726482793933,4.34556,2301.2,2301.0,2.3463]
[1726482794632,8.69126,2301.2,2301.0,2.3463]
[1726482794834,4.34556,2301.2,2301.0,2.3463]
[1726482795215,4.34526,2301.4,2301.2,2.4525]
[1726482795704,4.34537,2301.3,2301.2,2.4525]
[1726482795909,4.34526,2301.4,2301.2,2.4525]
[1726482798308,8.69053,2301.4,2301.2,2.4525]
[1726482798635,4.34526,2301.4,2301.2,2.4525]
[1726482799635,8.69058,2301.4,2301.2,2.4525]
[1726482799945,4.34526,2301.4,2301.2,2.4525]
[1726482800140,4.34558,2301.2,2301.0,2.2962]
[1726482800312,4.34574,2301.1,2301.0,2.2962]
[1726482801038,4.34552,2301.3,2300.8,2.2964]
[1726482801254,4.34552,2301.3,2300.7,0.0382892]
[1726482801255,8.69262,2300.8,2300.7,0.0382892]
[1726482802938,3.0,2300.9,2300.8,2.2852]
[1726482803119,4.34606,2301.0,2300.8,2.2852]
[1726482803535,4.34612,2300.9,2300.8,2.2852]
[1726482803731,4.34631,2300.8,2300.7,0.0382892]
[1726482804317,4.34612,2300.9,2300.7,4.26977267]
[1726482804677,11.81526,2301.4,2300.8,2.4472]
[1726482804678,3.0,2301.2,2300.8,2.4472]
[1726482805007,4.3451,2301.5,2301.1,2.4472]
[1726482805008,4.34499,2301.5,2301.1,2.4472]
[1726482805533,4.3448,2301.6,2301.2,4.23148347]
[1726482805755,4.34478,2301.7,2301.3,2.4472]
[1726482805920,4.34451,2301.8,2301.4,4.23148347]
[1726482806115,4.34451,2301.8,2301.5,2.4039]
[1726482807849,4.34463,2301.7,2301.5,2.4039]
[1726482808851,4.345,2301.5,2301.3,2.4526]
[1726482809120,4.34481,2301.6,2301.3,2.4526]
[1726482809347,4.34463,2301.7,2301.3,2.4526]
[1726482809546,4.34463,2301.7,2301.3,4.09458788]
[1726482809853,3.0,2302.1,2301.5,2.3184]
[1726482810058,8.68824,2302.0,2301.5,2.3184]
[1726482810216,8.68824,2302.0,2301.5,6.66337]
[1726482810416,4.34408,2302.0,2301.5,6.66337]
[1726482810738,4.34432,2301.9,2301.5,6.66337]
[1726482811522,4.34408,2302.0,2301.5,6.66337]
[1726482811523,4.34408,2302.0,2301.5,12.53223535]
[1726482811826,8.68826,2302.0,2301.5,8.18726535]
[1726482812251,4.34426,2301.9,2301.5,8.18726535]
[1726482812687,4.34426,2301.9,2301.5,3.84240535]
[1726482813355,4.34443,2301.8,2301.5,2.3184]
[1726482813557,4.34469,2301.7,2301.5,2.3184]
[1726482813752,4.3447,2301.7,2301.5,2.3184]
[1726482814485,4.34444,2301.8,2301.5,2.3184]
[1726482814698,0.3,2302.3,2301.5,2.3184]
[1726482815007,4.34452,2301.8,2301.5,2.3184]
[1726482815655,4.3447,2301.7,2301.5,2.3184]
[1726482815862,4.34452,2301.8,2301.5,2.3184]
[1726482826627,4.34472,2301.7,2301.5,2.3184]
[1726482826925,4.34452,2301.8,2301.5,2.3184]
[1726482829056,4.34469,2301.7,2301.5,2.3184]
[1726482829358,4.34452,2301.8,2301.5,2.3184]
[1726482830257,8.68907,2301.8,2301.5,2.3184]
[1726482830445,4.34452,2301.8,2301.5,2.3184]
[1726482832518,4.34463,2301.7,2301.5,2.3184]
[1726482832719,4.34393,2302.1,2301.5,2.3184]
[1726482832915,4.3448,2301.6,2301.5,2.3184]
[1726482833121,4.3455,2301.3,2301.1,2.3369]
[1726482833731,4.34555,2301.2,2301.1,2.3369]
[1726482833933,4.34555,2301.2,2301.0,7.4]
[1726482834130,8.69103,2301.3,2300.8,11.01151347]
[1726482834333,4.34557,2301.2,2300.8,6.66528347]
[1726482835193,4.34585,2301.1,2300.8,6.66528347]
[1726482835494,4.34579,2301.1,2300.8,6.66528347]
[1726482836658,4.34557,2301.2,2300.8,6.66528347]
[1726482838055,8.69126,2301.2,2300.8,6.66528347]
[1726482838258,4.34532,2301.4,2301.0,4.23148347]
[1726482838460,4.3455,2301.3,2301.0,4.23148347]
[1726482840397,4.34557,2301.2,2301.0,4.23148347]
[1726482840778,0.869089,2301.2,2300.8,6.66528347]
[1726482840982,4.3457,2301.2,2300.7,0.0382892]
[1726482841210,4.34619,2300.9,2300.7,0.0382892]
[1726482841874,4.34631,2300.8,2300.7,0.0382892]
[1726482846705,4.34567,2301.2,2300.8,2.4541]
[1726482846902,4.34602,2301.0,2300.8,6.68558347]
[1726482847188,4.34586,2301.1,2300.8,6.68558347]
[1726482847402,8.6917,2301.1,2300.8,6.68558347]
[1726482847826,4.34603,2301.0,2300.8,6.68558347]
[1726482850131,4.34584,2301.1,2300.8,6.68558347]
[1726482850365,4.34501,2301.5,2301.1,2.295]
[1726482850868,4.34501,2301.5,2301.1,6.64071]
[1726482851166,4.34501,2301.5,2300.8,1.10704427]
[1726482851167,4.34474,2301.7,2301.5,2.3164]
[1726482851932,4.34472,2301.7,2301.5,2.3164]
[1726482853470,4.34451,2301.8,2301.5,2.3164]
[1726482853666,4.34462,2301.7,2301.5,2.3164]
[1726482854081,9.423217,2301.9,2301.5,2.3164]
[1726482854285,4.34437,2301.9,2301.5,2.3164]
[1726482854481,4.34446,2301.8,2301.5,2.3164]
[1726482854648,4.34463,2301.7,2301.5,2.3164]
[1726482855287,4.34437,2301.9,2301.5,2.3164]
[1726482855486,4.34445,2301.8,2301.5,2.3164]
[1726482856975,4.34463,2301.7,2301.5,2.3164]
[1726482857166,4.34463,2301.7,2301.3,6.80246]
[1726482857765,4.34445,2301.8,2301.3,6.80246]
[1726482857964,4.34445,2301.8,2301.4,4.34512]
[1726482858177,4.34474,2301.7,2301.3,2.4572]
[1726482858658,4.34445,2301.8,2301.4,6.76477]
[1726482858857,4.34445,2301.8,2301.4,10.99625347]
[1726482859084,8.68905,2301.8,2301.4,6.65108347]
[1726482859385,4.34466,2301.7,2301.4,2.4196]
[1726482860765,4.34481,2301.6,2301.2,10.86136347]
[1726482861098,4.34481,2301.6,2301.2,6.51598347]
[1726482861248,4.34481,2301.6,2301.2,2.2845]
[1726482861464,4.34565,2301.2,2301.0,7.4]
[1726482861669,3.0,2301.4,2300.8,2.2845]
[1726482862013,4.34557,2301.2,2300.8,11.04056347]
[1726482862704,11.81424,2301.9,2301.1,2.4368]
[1726482862705,4.34502,2301.5,2301.1,2.4368]
[1726482863112,4.34463,2301.7,2301.2,8.57689347]
[1726482863316,4.34443,2301.8,2301.4,6.78197]
[1726482863469,4.34443,2301.8,2301.4,2.4368]
[1726482863808,4.34462,2301.7,2301.4,2.4368]
[1726482863994,4.34443,2301.8,2301.4,2.4368]
[1726482864203,4.34443,2301.8,2301.4,6.78195]
[1726482865087,7.34427,2301.9,2301.4,15.35840347]
[1726482865287,7.34427,2301.9,2301.5,2.4256]
[1726482865288,4.34427,2301.9,2301.5,2.4256]
[1726482868640,4.34445,2301.8,2301.5,2.4256]
[1726482869121,9.6309098,2301.9,2301.5,2.4256]
[1726482869497,5.2865498,2301.9,2301.5,2.4256]
[1726482869702,4.34443,2301.8,2301.5,2.4256]
[1726482870599,4.34443,2301.8,2301.4,4.34505]
[1726482871012,4.34443,2301.8,2301.3,4.34534]
[1726482871323,4.34463,2301.7,2301.3,4.34534]
[1726482872316,8.68899,2301.8,2301.3,4.34534]
[1726482872686,5.213329,2301.8,2301.3,4.34534]
[1726482872891,4.34473,2301.7,2301.2,2.4266]
[1726482873091,4.34497,2301.6,2301.2,2.4266]
[1726482873315,4.34503,2301.5,2301.2,2.4266]
[1726482873833,4.34497,2301.6,2301.2,2.4266]
[1726482874421,4.34501,2301.5,2301.2,6.65808347]
[1726482874929,4.34501,2301.5,2301.2,2.4266]
[1726482875980,4.34537,2301.3,2301.0,14.03078347]
[1726482876184,4.34537,2301.3,2300.8,0.43847092]
[1726482876185,4.34563,2301.2,2300.8,6.63078347]
[1726482876384,4.34583,2301.1,2300.8,2.3993]
[1726482876831,4.34563,2301.2,2300.8,2.3993]
[1726482877036,4.34563,2301.2,2300.8,6.63078347]
[1726482878113,4.34563,2301.2,2300.8,10.97708347]
[1726482879303,4.34563,2301.2,2300.8,12.51325574]
[1726482880039,4.34563,2301.2,2300.8,8.16695574]
[1726482880294,4.34563,2301.2,2300.8,6.63078347]
[1726482880814,4.34563,2301.2,2300.8,10.97696347]
[1726482883907,8.68952,2301.7,2301.2,6.67044]
[1726482884126,4.34476,2301.7,2301.3,4.23148347]
[1726482884507,4.34448,2301.8,2301.4,2.3619]
[1726482884702,4.9269324,2301.9,2301.4,2.3619]
[1726482884909,4.34405,2302.0,2301.5,4.23148347]
[1726482885373,4.34405,2302.0,2301.5,8.57642347]
[1726482885805,5.3609874,2302.0,2301.5,8.57642347]
[1726482886006,5.3609874,2302.0,2301.5,4.23148347]
[1726482886204,4.34428,2301.9,2301.5,4.23148347]
[1726482886448,4.34428,2301.9,2301.4,11.05202]
[1726482886449,4.34428,2301.9,2301.4,6.70693]
[1726482886652,4.34428,2301.9,2301.4,11.05202]
[1726482886801,4.34428,2301.9,2301.4,12.58037035]
[1726482887005,4.34428,2301.9,2301.4,8.23528035]
[1726482887216,4.34428,2301.9,2301.4,12.58036035]
[1726482887419,4.34428,2301.9,2301.4,8.23528035]
[1726482888487,4.34461,2301.7,2301.2,4.3455]
[1726482888656,4.34461,2301.7,2301.2,4.34546]
[1726482889684,4.34433,2301.9,2301.4,4.34516]
[1726482889887,4.34452,2301.8,2301.3,10.96830347]
[1726482890195,4.34407,2302.0,2301.5,4.23148347]
[1726482890415,4.34425,2301.9,2301.5,8.57636347]
[1726482890650,4.34425,2301.9,2301.6,2.2872]
[1726482893186,4.34425,2301.9,2301.5,4.23148347]
[1726482893433,4.34425,2301.9,2301.3,8.69048]
[1726482893434,4.34473,2301.7,2301.4,2.3644]
[1726482893732,4.34473,2301.7,2301.2,6.70994]
[1726482897030,4.34473,2301.7,2301.3,4.23148347]
[1726482898534,4.34489,2301.6,2301.2,4.34554]
[1726482898836,4.34569,2301.2,2300.8,14.16411]
[1726482899047,3.0,2301.9,2300.8,2.4179]
[1726482899191,4.34607,2301.0,2300.7,0.0382892]
[1726482899403,4.34612,2300.9,2300.7,0.0382892]
[1726482899701,5.215489,2300.9,2300.7,0.0382892]
[1726482899902,4.3463,2300.9,2300.7,0.0382892]
[1726482901906,4.34593,2301.0,2300.7,0.0382892]
[1726482902444,3.0,2301.4,2300.7,4.26977267]
[1726482902606,7.34561,2301.2,2300.9,6.52998347]
[1726482903574,7.34561,2301.2,2300.9,2.2985]
[1726482903932,7.34561,2301.2,2300.7,8.61618267]
[1726482903933,4.34577,2301.1,2300.7,0.0382892]
[1726482904128,5.514908,2301.1,2300.7,0.0382892]
[1726482904370,4.34577,2301.1,2300.7,0.0382892]
[1726482904932,3.0,2301.2,2300.8,2.3862]
[1726482905276,4.34547,2301.3,2300.9,8.57759347]
[1726482905678,3.0,2301.4,2300.9,12.92359347]
[1726482905838,4.34509,2301.5,2301.1,4.23148347]
[1726482906036,8.69019,2301.5,2301.2,2.2508]
[1726482906236,4.34509,2301.5,2301.2,2.2508]
[1726482907540,8.69018,2301.5,2301.2,2.2508]
[1726482909247,8.69018,2301.5,2301.1,4.23148347]
[1726482909248,8.69018,2301.5,2301.1,6.63808347]
[1726482910086,1.47014835,2301.8,2301.2,4.34545]
[1726482910384,4.3448,2301.6,2301.2,4.34545]
[1726482910686,8.68972,2301.6,2301.1,10.98381347]
[1726482910891,4.3448,2301.6,2301.1,10.98381347]
[1726482911187,8.68969,2301.6,2301.1,12.51677682]
[1726482911562,4.3448,2301.6,2301.1,12.51677682]
[1726482911997,8.68974,2301.6,2301.1,12.51677682]
[1726482912158,4.34534,2301.4,2301.1,2.4066]
[1726482912361,4.34531,2301.4,2301.1,2.4066]
[1726482914161,4.34527,2301.4,2300.9,15.25159347]
[1726482915602,4.34496,2301.6,2301.1,4.23148347]
[1726482915777,4.34471,2301.7,2301.3,4.23148347]
[1726482916088,4.34509,2301.5,2301.2,2.4239]
[1726482919694,4.34528,2301.4,2301.1,4.23148347]
[1726482921096,8.69018,2301.5,2301.1,4.23148347]
[1726482921389,4.34509,2301.5,2301.1,9.67541182]
[1726482921696,4.34509,2301.5,2301.2,2.3231]
[1726482921898,8.69025,2301.5,2301.2,2.3231]
[1726482922206,4.34509,2301.5,2301.2,2.3231]
[1726482924606,4.34476,2301.7,2301.2,6.66863]
[1726482924607,8.68953,2301.7,2301.2,6.66863]
[1726482924778,4.3449,2301.6,2301.2,2.3231]
[1726482925161,4.345,2301.5,2301.2,2.3231]
[1726482928971,4.34483,2301.6,2301.3,4.23148347]
[1726482929195,8.68941,2301.7,2301.3,4.23148347]
[1726482929515,4.34488,2301.6,2301.3,4.23148347]
[1726482930500,7.34408,2302.0,2301.4,6.68867]
[1726482930501,4.34447,2301.8,2301.4,6.68867]
[1726482930810,8.68898,2301.8,2301.4,6.68867]
[1726482931017,8.68899,2301.8,2301.4,6.68867]
[1726482931713,4.34447,2301.8,2301.4,6.68867]
[1726482931877,4.34447,2301.8,2301.5,0.0927756]
[1726482932683,8.68899,2301.8,2301.5,0.0927756]
[1726482933014,4.34447,2301.8,2301.5,0.0927756]
[1726482934196,4.3434,2302.4,2301.8,2.2509]
[1726482934393,4.34304,2302.6,2302.1,4.23148347]
[1726482934732,7.47,2302.8,2301.5,11.8377256]
[1726482934733,1.680266,2302.7,2302.3,4.23148347]
[1726482934879,4.3427,2302.8,2302.5,4.23148347]
[1726482935079,4.3427,2302.8,2302.4,0.0955133]
[1726482935080,4.34266,2302.8,2302.4,0.0955133]
[1726482935391,4.77693,2302.8,2302.5,0.0955133]
[1726482935920,4.34283,2302.7,2302.3,4.23148347]
[1726482936117,5.254806,2302.7,2302.6,0.09512176]
[1726482936302,8.254806,2302.7,2302.6,0.09512176]
[1726482936505,12.597636,2302.7,2302.6,0.09512176]
[1726482936818,4.34312,2302.5,2302.1,4.23148347]
[1726482937037,7.34283,2302.7,2302.3,4.23148347]
[1726482937201,7.34283,2302.7,2302.4,2.4835]
[1726482937402,12.854259,2302.7,2302.4,2.4835]
[1726482937949,4.34295,2302.6,2302.4,2.4835]
[1726482938240,4.34295,2302.6,2302.2,2.3363]
[1726482938945,4.168529,2302.7,2302.2,6.67995]
[1726482939248,4.168529,2302.7,2302.3,4.23148347]
[1726482939440,8.511299,2302.7,2302.3,4.23148347]
[1726482939610,4.34292,2302.6,2302.3,4.23148347]
[1726482941157,4.168529,2302.7,2302.3,4.23148347]
[1726482941454,4.3423,2303.0,2302.5,4.23148347]
[1726482941455,4.34227,2303.0,2302.5,4.23148347]
[1726482941605,4.34227,2303.0,2302.5,8.57458347]
[1726482941803,4.776497,2303.0,2302.5,8.57458347]
[1726482942000,9.118817,2303.0,2302.5,8.57458347]
[1726482942206,4.34236,2302.9,2302.5,4.23148347]
[1726482943066,4.34253,2302.8,2302.4,2.3037]
[1726482943352,4.34253,2302.8,2302.1,2.4765]
[1726482943353,4.3431,2302.5,2302.1,2.4765]
[1726482943725,8.68636,2302.5,2302.1,2.4765]
[1726482944246,9.554996,2302.5,2302.1,2.4765]
[1726482944475,5.211736,2302.5,2302.1,2.4765]
[1726482944618,9.554986,2302.5,2302.1,2.4765]
[1726482944964,8.68635,2302.5,2302.1,2.4765]
[1726482945972,4.3431,2302.5,2302.2,4.23148347]
[1726482946122,4.34302,2302.6,2302.4,4.23148347]
[1726482946458,4.34343,2302.4,2302.2,4.23148347]
[1726482946815,3.0,2302.9,2302.1,2.4765]
[1726482946816,4.34367,2302.2,2302.1,2.4765]
[1726482947975,8.68734,2302.2,2302.1,2.4765]
[1726482948754,4.34385,2302.1,2302.0,4.23148347]
[1726482948961,4.34452,2301.8,2301.7,2.475]
[1726482949163,8.68906,2301.8,2301.7,2.475]
[1726482949334,8.68906,2301.8,2301.7,2.56886765]
[1726482949667,8.68906,2301.8,2301.7,0.09386765]
[1726482950023,4.3448,2301.6,2301.5,2.475]
[1726482950464,4.3447,2301.7,2301.5,2.475]
[1726482950644,4.3447,2301.7,2301.6,4.23148347]
[1726482950971,8.68941,2301.7,2301.6,4.23148347]
[1726482951519,4.3447,2301.7,2301.6,4.23148347]
[1726482956797,4.34453,2301.8,2301.6,4.23148347]
[1726482958034,4.22453,2301.8,2301.6,4.23148347]
[1726482960670,4.22453,2301.8,2301.6,5.33664482]
[1726482961248,8.56906,2301.8,2301.6,5.33664482]
[1726482961448,8.56907,2301.8,2301.6,4.23148347]
[1726482962563,4.34461,2301.7,2301.5,2.475]
[1726482962746,14.81312,2302.5,2300.6,1.81929973]
[1726482962747,4.34499,2301.5,2301.3,2.3856]
[1726482963480,4.34499,2301.5,2301.4,4.23148347]
[1726482964348,4.34499,2301.5,2301.4,4.32258186]
[1726482965151,4.34464,2301.7,2301.5,2.2641]
[1726482965380,3.0,2302.4,2301.7,4.23148347]
[1726482965537,4.34442,2301.8,2301.7,4.23148347]
[1726482966277,4.34461,2301.7,2301.5,6.49558347]
[1726482966576,4.34461,2301.7,2301.5,7.65415764]
[1726482969362,4.3448,2301.6,2301.5,7.65415764]
[1726482969570,4.3448,2301.6,2301.5,4.23148347]
[1726482976621,4.34499,2301.5,2301.4,2.3932]
[1726482977425,8.69036,2301.4,2301.3,4.23148347]
[1726482977635,4.34537,2301.3,2301.2,2.485]
[1726482979371,4.3452,2301.4,2301.2,2.57696605]
[1726482979525,4.3452,2301.4,2301.3,4.23148347]
[1726482980066,4.3452,2301.4,2301.3,4.32344952]
[1726482980742,8.69045,2301.4,2301.3,4.32344952]
[1726482981042,8.69045,2301.4,2301.3,0.09196605]
[1726482981428,4.34542,2301.3,2301.1,4.23148347]
[1726482981764,4.34542,2301.3,2301.1,5.05052171]
[1726482982562,8.69051,2301.4,2301.1,5.05052171]
[1726482982740,4.34537,2301.3,2301.1,5.05052171]
[1726482984270,4.3452,2301.4,2301.1,5.05052171]
[1726482984466,4.3452,2301.4,2301.2,0.75385217]
[1726482984675,4.3452,2301.4,2301.3,4.23148347]
[1726482985646,4.34517,2301.5,2301.3,6.60938347]
[1726482985905,4.34464,2301.7,2301.3,10.95473347]
[1726482986185,4.34464,2301.7,2301.5,4.23148347]
[1726482986484,4.34428,2301.9,2301.5,4.23148347]
[1726482986772,4.34444,2301.8,2301.5,4.31837119]
[1726482986977,4.34444,2301.8,2301.6,1.26033417]
[1726482988184,4.34404,2302.0,2301.7,6.55718347]
[1726482988368,4.34431,2301.9,2301.7,6.55718347]
[1726482988680,4.34366,2302.3,2301.8,0.08688773]
[1726482988862,11.81233,2303.0,2302.1,4.23148347]
[1726482988863,4.34337,2302.4,2302.1,4.23148347]
[1726482989067,4.34283,2302.7,2302.4,4.23148347]
[1726482989481,4.34283,2302.7,2302.6,4.23148347]
[1726482989892,4.34283,2302.7,2302.4,4.23148347]
[1726482990179,4.3431,2302.5,2302.4,4.23148347]
[1726482990384,8.68629,2302.5,2302.2,6.55718347]
[1726482990687,4.3431,2302.5,2302.2,6.55718347]
[1726482991438,4.34348,2302.3,2302.0,6.62118347]
[1726482991655,4.34377,2302.2,2302.0,6.62118347]
[1726482991845,4.34385,2302.1,2301.8,6.62118347]
[1726482992385,4.34385,2302.1,2301.8,4.23148347]
[1726482992588,4.3433,2302.4,2301.8,4.23148347]
[1726482992788,4.34395,2302.1,2301.8,4.23148347]
[1726482992956,4.34407,2302.0,2301.8,4.23148347]
[1726482993405,4.34386,2302.1,2301.9,2.4778]
[1726482993571,4.34386,2302.1,2302.0,4.23148347]
[1726482994163,4.34386,2302.1,2302.0,4.32306868]
[1726482995748,4.34385,2302.1,2302.0,4.32306868]
[1726482997209,3.0,2302.7,2302.0,5.00315555]
[1726482997417,4.34328,2302.5,2302.3,4.23148347]
[1726482997631,4.34349,2302.3,2302.1,6.64498347]
[1726482998168,8.68653,2302.5,2302.1,6.64498347]
[1726482998407,4.34293,2302.6,2302.3,4.23148347]
[1726482998611,4.34265,2302.8,2302.3,4.23148347]
[1726482998818,4.34282,2302.7,2302.3,4.23148347]
[1726482999283,4.34313,2302.5,2302.3,4.23148347]
[1726482999673,8.6857,2302.7,2302.3,4.23148347]
[1726483000014,4.34284,2302.7,2302.4,2.2724]
[1726483000309,4.34284,2302.7,2302.4,3.36582243]
[1726483000517,8.68567,2302.7,2302.4,3.36582243]
[1726483000712,8.68567,2302.7,2302.4,2.2724]
[1726483001015,4.34292,2302.6,2302.4,2.2724]
[1726483005078,4.34268,2302.8,2302.4,2.2724]
[1726483005480,4.34268,2302.8,2302.5,4.23148347]
[1726483005481,4.34282,2302.7,2302.5,4.23148347]
[1726483006680,4.34291,2302.6,2302.5,4.23148347]
[1726483007222,4.34282,2302.7,2302.5,4.23148347]
[1726483007514,8.68571,2302.7,2302.5,4.23148347]
[1726483007716,4.34282,2302.7,2302.5,4.23148347]
[1726483007877,8.68564,2302.7,2302.5,4.23148347]
[1726483008077,4.34282,2302.7,2302.5,4.23148347]
[1726483008485,8.68567,2302.7,2302.5,4.23148347]
[1726483008682,4.34282,2302.7,2302.3,4.23148347]
[1726483008884,8.68563,2302.7,2302.3,5.30564452]
[1726483009286,8.68563,2302.7,2302.4,0.09110896]
[1726483009490,8.68563,2302.7,2302.4,1.30208931]
[1726483009886,4.34292,2302.6,2302.4,1.30208931]
[1726483010793,4.34292,2302.6,2302.4,0.09110896]
[1726483010997,8.68564,2302.7,2302.4,0.09110896]
[1726483011622,4.3431,2302.5,2302.4,0.09110896]
[1726483012534,4.34342,2302.4,2302.1,4.23148347]
[1726483012697,4.34348,2302.3,2302.1,4.23148347]
[1726483012890,4.34342,2302.4,2302.1,4.23148347]
[1726483013328,4.34342,2302.4,2302.3,4.23148347]
[1726483016657,4.34313,2302.5,2302.3,4.23148347]
[1726483017342,4.34313,2302.5,2302.3,6.52978347]
[1726483017962,4.34305,2302.6,2302.3,6.52978347]
[1726483017963,4.34305,2302.6,2302.3,7.61714582]
[1726483018257,4.34305,2302.6,2302.5,4.23148347]
[1726483019017,4.34305,2302.6,2302.3,7.61714582]
[1726483021657,4.34305,2302.6,2302.3,6.52978347]
[1726483022824,4.34276,2302.7,2302.3,6.52978347]
[1726483023229,4.34294,2302.6,2302.3,6.52978347]
[1726483024327,4.34276,2302.7,2302.4,0.0902839]
[1726483024531,8.68561,2302.7,2302.4,0.0902839]
[1726483025479,8.6856,2302.7,2302.4,0.0902839]